fUSD/lending_fUSD_20240428
["ID","MTS","AMOUNT","RATE_DAILY","PERIOD"]
[324791944,1714335059248,-500.0,0.00011232,2]
[324791945,1714335059257,-501.81947576,0.00011232,2]
[324791946,1714335059265,-500.0,0.00011232,2]
[324791947,1714335059274,-500.0,0.00011232,2]
[324791948,1714335059283,-238.33919974,0.00011232,2]
[324791949,1714335059478,-500.0,0.00011232,2]
[324791950,1714335059487,-564.8,0.00011232,2]
[324791951,1714335059497,-500.0,0.00011232,2]
[324791952,1714335059506,-500.0,0.00011232,2]
[324791953,1714335059515,-966.12,0.00011232,2]
[324791954,1714335059524,-665.52,0.00011232,2]
[324791955,1714335059534,-500.0,0.00011232,2]
[324791956,1714335059545,-500.0,0.00011232,2]
[324791957,1714335059554,-439.856673,0.00011232,2]
[324791958,1714335059564,-500.0,0.00011232,2]
[324791959,1714335059574,-500.0,0.00011232,2]
[324791960,1714335059584,-151.0,0.00011232,2]
[324791961,1714335059593,-500.0,0.00011232,2]
[324791962,1714335059602,-500.0,0.00011232,2]
[324791963,1714335059611,-500.0,0.00011232,2]
[324791964,1714335059620,-354.03056168,0.00011232,2]
[324791965,1714335059629,-439.856673,0.00011232,2]
[324791966,1714335059638,-500.0,0.00011232,2]
[324791967,1714335059647,-500.0,0.00011232,2]
[324791968,1714335059657,-500.0,0.00011232,2]
[324791969,1714335059666,-500.0,0.00011232,2]
[324791970,1714335059675,-500.0,0.00011232,2]
[324791971,1714335059684,-500.0,0.00011232,2]
[324791972,1714335059694,-608.01,0.00011232,2]
[324791973,1714335059703,-507.69948382,0.00011232,2]
[324791974,1714335059712,-500.0,0.00011232,2]
[324791975,1714335059722,-500.0,0.00011232,2]
[324791976,1714335059731,-500.0,0.00011232,2]
[324791977,1714335059740,-500.0,0.00011232,2]
[324791978,1714335059750,-500.0,0.00011232,2]
[324791979,1714335059759,-500.0,0.00011232,2]
[324791980,1714335059768,-706.48,0.00011232,2]
[324791981,1714335059778,-602.98,0.00011232,2]
[324791982,1714335059787,-500.0,0.00011232,2]
[324791983,1714335059797,-405.20267192,0.00011232,2]
[324791984,1714335059806,-724.080274,0.00011232,2]
[324791985,1714335059815,-500.0,0.00011232,2]
[324791986,1714335059825,-500.0,0.00011232,2]
[324791987,1714335059834,-500.0,0.00011232,2]
[324791988,1714335059843,-500.0,0.00011232,2]
[324791989,1714335059852,-500.0,0.00011232,2]
[324791990,1714335059861,-724.080274,0.00011232,2]
[324791991,1714335059871,-1415.41,0.00011232,2]
[324791992,1714335059880,-500.0,0.00011232,2]
[324791993,1714335059889,-1824.84,0.00011232,2]
[324791994,1714335059904,-911.62,0.00011232,2]
[324791995,1714335059915,-500.0,0.00011232,2]
[324791996,1714335059925,-500.0,0.00011232,2]
[324791997,1714335059935,-500.0,0.00011232,2]
[324791998,1714335059945,-500.0,0.00011232,2]
[324791999,1714335059955,-500.0,0.00011232,2]
[324792000,1714335059966,-500.0,0.00011232,2]
[324792001,1714335059975,-500.0,0.00011232,2]
[324792002,1714335059985,-506.18960406,0.00011232,2]
[324792003,1714335059995,-500.0,0.00011232,2]
[324792004,1714335060005,-500.0,0.00011232,2]
[324792005,1714335060015,-500.0,0.00011232,2]
[324792006,1714335060025,-1589.3,0.00011232,2]
[324792007,1714335060034,-500.0,0.00011232,2]
[324792008,1714335060044,-151.0,0.00011232,2]
[324792009,1714335060054,-520.83,0.00011232,2]
[324792010,1714335060064,-500.0,0.00011232,2]
[324792011,1714335060073,-684.215025,0.00011232,2]
[324792012,1714335060084,-500.0,0.00011232,2]
[324792013,1714335060093,-500.0,0.00011232,2]
[324792014,1714335060103,-500.0,0.00011232,2]
[324792015,1714335060113,-500.0,0.00011232,2]
[324792016,1714335060123,-500.0,0.00011232,2]
[324792017,1714335060132,-684.215025,0.00011232,2]
[324792018,1714335060142,-500.0,0.00011232,2]
[324792019,1714335060152,-500.0,0.00011232,2]
[324792020,1714335060161,-1830.16,0.00011232,2]
[324792021,1714335060171,-500.0,0.00011232,2]
[324792022,1714335060180,-500.0,0.00011232,2]
[324792023,1714335060190,-281.639809,0.00011232,2]
[324792024,1714335060200,-500.0,0.00011232,2]
[324792025,1714335060209,-500.0,0.00011232,2]
[324792026,1714335060219,-281.639809,0.00011232,2]
[324792027,1714335060229,-500.0,0.00011232,2]
[324792028,1714335060239,-447.05,0.00011232,2]
[324792029,1714335060248,-500.0,0.00011232,2]
[324792030,1714335060259,-1311.58,0.00011232,2]
[324792031,1714335060268,-500.0,0.00011232,2]
[324792032,1714335060278,-500.0,0.00011232,2]
[324792033,1714335060288,-190.425428,0.00011232,2]
[324792034,1714335060298,-500.0,0.00011232,2]
[324792035,1714335060307,-500.0,0.00011232,2]
[324792036,1714335060318,-632.72,0.00011232,2]
[324792037,1714335060327,-500.0,0.00011232,2]
[324792038,1714335060338,-500.0,0.00011232,2]
[324792039,1714335060347,-346.7586006,0.00011232,2]
[324792040,1714335060357,-190.425428,0.00011232,2]
[324792041,1714335060368,-500.0,0.00011232,2]
[324792042,1714335060382,-500.0,0.00011232,2]
[324792043,1714335060392,-662.93,0.00011232,2]
[324792044,1714335060402,-500.0,0.00011232,2]
[324792045,1714335060411,-500.0,0.00011232,2]
[324792046,1714335060421,-500.0,0.00011232,2]
[324792047,1714335060431,-500.0,0.00011232,2]
[324792048,1714335060441,-914.28,0.00011232,2]
[324792049,1714335060453,-500.0,0.00011232,2]
[324792050,1714335060463,-151.0,0.00011232,2]
[324792051,1714335060473,-500.0,0.00011232,2]
[324792052,1714335060482,-500.0,0.00011232,2]
[324792053,1714335060492,-500.0,0.00011232,2]
[324792054,1714335060501,-500.0,0.00011232,2]
[324792055,1714335060511,-500.0,0.00011232,2]
[324792056,1714335060521,-151.0,0.00011232,2]
[324792057,1714335060533,-3422.18,0.00011232,2]
[324792058,1714335060544,-500.0,0.00011232,2]
[324792059,1714335060553,-500.0,0.00011232,2]
[324792060,1714335060563,-500.0,0.00011232,2]
[324792061,1714335060572,-500.0,0.00011232,2]
[324792062,1714335060582,-500.0,0.00011232,2]
[324792063,1714335060592,-767.88,0.00011232,2]
[324792064,1714335060601,-500.0,0.00011232,2]
[324792065,1714335060611,-500.0,0.00011232,2]
[324792066,1714335060620,-500.0,0.00011232,2]
[324792067,1714335060629,-500.0,0.00011232,2]
[324792068,1714335060639,-500.0,0.00011232,2]
[324792069,1714335060648,-735.24,0.00011232,2]
[324792070,1714335060658,-500.0,0.00011232,2]
[324792071,1714335060667,-706.69,0.00011232,2]
[324792072,1714335060677,-500.0,0.00011232,2]
[324792073,1714335060687,-151.0,0.00011232,2]
[324792074,1714335060697,-500.0,0.00011232,2]
[324792075,1714335060706,-259.650878,0.00011232,2]
[324792076,1714335060716,-1342.45,0.00011232,2]
[324792077,1714335060725,-533.84,0.00011232,2]
[324792078,1714335060735,-788.02,0.00011232,2]
[324792079,1714335060744,-2092.94,0.00011232,2]
[324792080,1714335060753,-259.650878,0.00011232,2]
[324792081,1714335060763,-151.0,0.00011232,2]
[324792082,1714335060773,-500.0,0.00011232,2]
[324792083,1714335060783,-2167.16,0.00011232,2]
[324792084,1714335060792,-554.604274,0.00011232,2]
[324792085,1714335060802,-1698.03,0.00011232,2]
[324792086,1714335060811,-151.0,0.00011232,2]
[324792087,1714335060821,-500.0,0.00011232,2]
[324792088,1714335060830,-502.33383086,0.00011232,2]
[324792089,1714335060840,-500.0,0.00011232,2]
[324792090,1714335060850,-1776.941553,0.00011232,2]
[324792091,1714335060859,-500.0,0.00011232,2]
[324792092,1714335060869,-554.604274,0.00011232,2]
[324792093,1714335060879,-500.0,0.00011232,2]
[324792094,1714335060889,-500.0,0.00011232,2]
[324792095,1714335060898,-500.0,0.00011232,2]
[324792096,1714335060909,-5663.56,0.00011232,2]
[324792097,1714335060918,-500.0,0.00011232,2]
[324792098,1714335060928,-1776.941553,0.00011232,2]
[324792099,1714335060938,-500.0,0.00011232,2]
[324792100,1714335060951,-500.0,0.00011232,2]
[324792101,1714335060961,-709.07,0.00011232,2]
[324792102,1714335060971,-504.21529595,0.00011232,2]
[324792103,1714335060980,-500.0,0.00011232,2]
[324792104,1714335060990,-500.0,0.00011232,2]
[324792105,1714335060999,-5318.53,0.00011232,2]
[324792106,1714335061008,-500.0,0.00011232,2]
[324792107,1714335061018,-500.0,0.00011232,2]
[324792108,1714335061027,-500.0,0.00011232,2]
[324792109,1714335061036,-500.0,0.00011232,2]
[324792110,1714335061046,-500.0,0.00011232,2]
[324792111,1714335061055,-500.0,0.00011232,2]
[324792112,1714335061064,-576.42,0.00011232,2]
[324792113,1714335061073,-500.0,0.00011232,2]
[324792114,1714335061084,-673.78,0.00011232,2]
[324792115,1714335061093,-730.03,0.00011232,2]
[324792116,1714335061103,-500.0,0.00011232,2]
[324792117,1714335061112,-500.0,0.00011232,2]
[324792118,1714335061122,-1119.99,0.00011232,2]
[324792119,1714335061132,-3883.79,0.00011232,2]
[324792120,1714335061142,-500.0,0.00011232,2]
[324792121,1714335061151,-500.0,0.00011232,2]
[324792122,1714335061161,-500.0,0.00011232,2]
[324792123,1714335061171,-4497.99,0.00011232,2]
[324792124,1714335061180,-151.0,0.00011232,2]
[324792125,1714335061189,-500.0,0.00011232,2]
[324792126,1714335061206,-1502.91,0.00011232,2]
[324792127,1714335061216,-500.0,0.00011232,2]
[324792128,1714335061226,-500.0,0.00011232,2]
[324792129,1714335061236,-500.0,0.00011232,2]
[324792130,1714335061246,-505.03,0.00011232,2]
[324792131,1714335061256,-1373.5,0.00011232,2]
[324792132,1714335061265,-194.816461,0.00011232,2]
[324792133,1714335061276,-1354.41,0.00011232,2]
[324792134,1714335061285,-10290.32,0.00011232,2]
[324792135,1714335061295,-1071.21,0.00011232,2]
[324792136,1714335061304,-2176.76,0.00011232,2]
[324792137,1714335061314,-503.6095079,0.00011232,2]
[324792138,1714335061324,-500.0,0.00011232,2]
[324792139,1714335061333,-500.0,0.00011232,2]
[324792140,1714335061342,-639.11,0.00011232,2]
[324792141,1714335061352,-500.0,0.00011232,2]
[324792142,1714335061361,-500.0,0.00011232,2]
[324792143,1714335061371,-500.0,0.00011232,2]
[324792144,1714335061385,-1877.516642,0.00011232,2]
[324792145,1714335061394,-500.0,0.00011232,2]
[324792146,1714335061403,-156.55078172,0.00011232,2]
[324792147,1714335061415,-500.0,0.00011232,2]
[324792148,1714335061424,-1357.3,0.00011232,2]
[324792149,1714335061433,-500.0,0.00011232,2]
[324792150,1714335061444,-8156.81,0.00011232,2]
[324792151,1714335061467,-1877.516642,0.00011232,2]
[324792152,1714335061477,-500.0,0.00011232,2]
[324792153,1714335061487,-500.0,0.00011232,2]
[324792154,1714335061497,-500.0,0.00011232,2]
[324792155,1714335061507,-583.22,0.00011232,2]
[324792156,1714335061517,-580.74,0.00011232,2]
[324792157,1714335061527,-579.10614395,0.00011232,2]
[324792158,1714335061536,-1739.27,0.00011232,2]
[324792159,1714335061546,-500.0,0.00011232,2]
[324792160,1714335061556,-500.0,0.00011232,2]
[324792161,1714335061566,-1338.92,0.00011232,2]
[324792162,1714335061575,-500.0,0.00011232,2]
[324792163,1714335061585,-500.0,0.00011232,2]
[324792164,1714335061595,-500.0,0.00011232,2]
[324792165,1714335061604,-1602.59,0.00011232,2]
[324792166,1714335061614,-500.0,0.00011232,2]
[324792167,1714335061624,-151.0,0.00011232,2]
[324792168,1714335061635,-500.0,0.00011232,2]
[324792169,1714335061645,-3585.18,0.00011232,2]
[324792170,1714335061655,-500.0,0.00011232,2]
[324792171,1714335061664,-3404.45,0.00011232,2]
[324792172,1714335061675,-500.0,0.00011232,2]
[324792173,1714335061685,-3861.32,0.00011232,2]
[324792174,1714335061698,-505.32977923,0.00011232,2]
[324792175,1714335061708,-500.0,0.00011232,2]
[324792176,1714335061717,-584.32,0.00011232,2]
[324792177,1714335061728,-500.0,0.00011232,2]
[324792178,1714335061738,-1528.83,0.00011232,2]
[324792179,1714335061748,-2219.685263,0.00011232,2]
[324792180,1714335061758,-1912.47,0.00011232,2]
[324792181,1714335061768,-500.0,0.00011232,2]
[324792182,1714335061777,-500.0,0.00011232,2]
[324792183,1714335061788,-500.0,0.00011232,2]
[324792184,1714335061798,-500.0,0.00011232,2]
[324792185,1714335061808,-500.0,0.00011232,2]
[324792186,1714335061818,-2219.685263,0.00011232,2]
[324792187,1714335061828,-530.84,0.00011232,2]
[324792188,1714335061965,-500.0,0.00011232,2]
[324792189,1714335061974,-1414.12,0.00011232,2]
[324792190,1714335061983,-500.0,0.00011232,2]
[324792191,1714335061993,-1402.340596,0.00011232,2]
[324792192,1714335062003,-500.0,0.00011232,2]
[324792193,1714335062014,-500.0,0.00011232,2]
[324792194,1714335062023,-4357.97,0.00011232,2]
[324792195,1714335062033,-1402.340596,0.00011232,2]
[324792196,1714335062042,-3715.69,0.00011232,2]
[324792197,1714335062051,-914.96,0.00011232,2]
[324792198,1714335062061,-556.03,0.00011232,2]
[324792199,1714335062070,-500.0,0.00011232,2]
[324792200,1714335062080,-500.0,0.00011232,2]
[324792201,1714335062089,-500.0,0.00011232,2]
[324792202,1714335062098,-2110.76,0.00011232,2]
[324792203,1714335062107,-500.0,0.00011232,2]
[324792204,1714335062117,-500.0,0.00011232,2]
[324792205,1714335062127,-648.4697,0.00011232,2]
[324792206,1714335062138,-500.0,0.00011232,2]
[324792207,1714335062147,-500.0,0.00011232,2]
[324792208,1714335062156,-500.0,0.00011232,2]
[324792209,1714335062165,-4413.77,0.00011232,2]
[324792210,1714335062174,-162.373722,0.00011232,2]
[324792211,1714335062183,-500.0,0.00011232,2]
[324792212,1714335062192,-500.0,0.00011232,2]
[324792213,1714335062205,-660.54,0.00011232,2]
[324792214,1714335062214,-151.0,0.00011232,2]
[324792215,1714335062223,-1063.45,0.00011232,2]
[324792216,1714335062232,-500.0,0.00011232,2]
[324792217,1714335062241,-162.373722,0.00011232,2]
[324792218,1714335062250,-500.0,0.00011232,2]
[324792219,1714335062259,-10713.43,0.00011232,2]
[324792220,1714335062269,-500.0,0.00011232,2]
[324792221,1714335062279,-500.0,0.00011232,2]
[324792222,1714335062288,-501.80297236,0.00011232,2]
[324792223,1714335062298,-151.0,0.00011232,2]
[324792224,1714335062307,-500.0,0.00011232,2]
[324792225,1714335062318,-500.0,0.00011232,2]
[324792226,1714335062327,-500.0,0.00011232,2]
[324792227,1714335062336,-500.0,0.00011232,2]
[324792228,1714335062345,-777.04,0.00011232,2]
[324792229,1714335062354,-584.78,0.00011232,2]
[324792230,1714335062364,-500.0,0.00011232,2]
[324792231,1714335062375,-501.13897064,0.00011232,2]
[324792232,1714335062386,-2092.03,0.00011232,2]
[324792233,1714335062395,-2059.96,0.00011232,2]
[324792234,1714335062405,-502.79267952,0.00011232,2]
[324792235,1714335062415,-500.0,0.00011232,2]
[324792236,1714335062425,-674.68,0.00011232,2]
[324792237,1714335062435,-6179.61,0.00011232,2]
[324792238,1714335062447,-7807.56,0.00011232,2]
[324792239,1714335062457,-1071.510703,0.00011232,2]
[324792240,1714335062466,-501.45294476,0.00011232,2]
[324792241,1714335062476,-1585.49,0.00011232,2]
[324792242,1714335062485,-522.18,0.00011232,2]
[324792243,1714335062494,-500.0,0.00011232,2]
[324792244,1714335062503,-500.0,0.00011232,2]
[324792245,1714335062512,-644.87,0.00011232,2]
[324792246,1714335062522,-1071.510703,0.00011232,2]
[324792247,1714335062531,-500.0,0.00011232,2]
[324792248,1714335062540,-500.0,0.00011232,2]
[324792249,1714335062549,-1634.43,0.00011232,2]
[324792250,1714335062558,-500.0,0.00011232,2]
[324792251,1714335062567,-500.0,0.00011232,2]
[324792252,1714335062576,-270.937038,0.00011232,2]
[324792253,1714335062585,-500.0,0.00011232,2]
[324792254,1714335062595,-889.84,0.00011232,2]
[324792255,1714335062605,-1305.51,0.00011232,2]
[324792256,1714335062614,-500.0,0.00011232,2]
[324792257,1714335062624,-500.0,0.00011232,2]
[324792258,1714335062633,-7923.02,0.00011232,2]
[324792259,1714335062642,-560.52,0.00011232,2]
[324792260,1714335062652,-270.937038,0.00011232,2]
[324792261,1714335062661,-500.0,0.00011232,2]
[324792262,1714335062670,-7586.52,0.00011232,2]
[324792263,1714335062680,-590.45,0.00011232,2]
[324792264,1714335062689,-500.0,0.00011232,2]
[324792265,1714335062700,-500.0,0.00011232,2]
[324792266,1714335062711,-500.0,0.00011232,2]
[324792267,1714335062720,-500.0,0.00011232,2]
[324792268,1714335062729,-511.80714793,0.00011232,2]
[324792269,1714335062738,-2933.808158,0.00011232,2]
[324792270,1714335062748,-500.0,0.00011232,2]
[324792271,1714335062757,-500.0,0.00011232,2]
[324792272,1714335062767,-585.65,0.00011232,2]
[324792273,1714335062777,-500.0,0.00011232,2]
[324792274,1714335062790,-2052.98,0.00011232,2]
[324792275,1714335062800,-679.49,0.00011232,2]
[324792276,1714335062810,-151.0,0.00011232,2]
[324792277,1714335062820,-500.0,0.00011232,2]
[324792278,1714335062829,-585.79,0.00011232,2]
[324792279,1714335062839,-500.0,0.00011232,2]
[324792280,1714335062849,-5227.15,0.00011232,2]
[324792281,1714335062858,-550.705949,0.00011232,2]
[324792282,1714335062868,-2933.808158,0.00011232,2]
[324792283,1714335062878,-500.0,0.00011232,2]
[324792284,1714335062887,-1925.76,0.00011232,2]
[324792285,1714335062897,-500.0,0.00011232,2]
[324792286,1714335062907,-500.0,0.00011232,2]
[324792287,1714335062916,-500.0,0.00011232,2]
[324792288,1714335062926,-3698.54,0.00011232,2]
[324792289,1714335062936,-1470.84,0.00011232,2]
[324792290,1714335062946,-911.54,0.00011232,2]
[324792291,1714335062955,-537.76,0.00011232,2]
[324792292,1714335062965,-1419.51,0.00011232,2]
[324792293,1714335062975,-321.367418,0.00011232,2]
[324792294,1714335062984,-151.0,0.00011232,2]
[324792295,1714335062994,-550.705949,0.00011232,2]
[324792296,1714335063003,-500.0,0.00011232,2]
[324792297,1714335063012,-318.996419,0.00011232,2]
[324792298,1714335063021,-854.24,0.00011232,2]
[324792299,1714335063031,-1077.75,0.00011232,2]
[324792300,1714335063040,-500.0,0.00011232,2]
[324792301,1714335063049,-321.367418,0.00011232,2]
[324792302,1714335063058,-500.0,0.00011232,2]
[324792303,1714335063067,-514.69,0.00011232,2]
[324792304,1714335063076,-151.0,0.00011232,2]
[324792305,1714335063085,-318.996419,0.00011232,2]
[324792306,1714335063094,-500.0,0.00011232,2]
[324792307,1714335063104,-2717.25,0.00011232,2]
[324792308,1714335063113,-530.39,0.00011232,2]
[324792309,1714335063122,-4094.38,0.00011232,2]
[324792310,1714335063132,-336.83530982,0.00011232,2]
[324792311,1714335063140,-500.0,0.00011232,2]
[324792312,1714335063150,-579.048538,0.00011232,2]
[324792313,1714335063159,-947.74,0.00011232,2]
[324792314,1714335063167,-1974.12,0.00011232,2]
[324792315,1714335063177,-579.048538,0.00011232,2]
[324792316,1714335063185,-500.0,0.00011232,2]
[324792317,1714335063194,-500.0,0.00011232,2]
[324792318,1714335063204,-1503.79,0.00011232,2]
[324792319,1714335063214,-500.0,0.00011232,2]
[324792320,1714335063223,-500.0,0.00011232,2]
[324792321,1714335063232,-1354.91,0.00011232,2]
[324792322,1714335063241,-1990.76,0.00011232,2]
[324792323,1714335063250,-2218.47,0.00011232,2]
[324792324,1714335063259,-500.0,0.00011232,2]
[324792325,1714335063268,-1792.37,0.00011232,2]
[324792326,1714335063277,-500.0,0.00011232,2]
[324792327,1714335063286,-519.25567854,0.00011232,2]
[324792328,1714335063295,-989.54,0.00011232,2]
[324792329,1714335063304,-1852.44,0.00011232,2]
[324792330,1714335063314,-500.0,0.00011232,2]
[324792331,1714335063323,-500.0,0.00011232,2]
[324792332,1714335063331,-500.0,0.00011232,2]
[324792333,1714335063340,-500.0,0.00011232,2]
[324792334,1714335063349,-500.0,0.00011232,2]
[324792335,1714335063358,-151.0,0.00011232,2]
[324792336,1714335063368,-500.0,0.00011232,2]
[324792337,1714335063380,-481.10159663,0.00011232,2]
[324792338,1714335063389,-2057.04,0.00011232,2]
[324792339,1714335063398,-500.0,0.00011232,2]
[324792340,1714335063407,-511.72,0.00011232,2]
[324792341,1714335063418,-500.0,0.00011232,2]
[324792342,1714335063428,-500.0,0.00011232,2]
[324792343,1714335063437,-879.95,0.00011232,2]
[324792344,1714335063448,-664.66,0.00011232,2]
[324792345,1714335063458,-6407.06,0.00011232,2]
[324792346,1714335063468,-2262.97,0.00011232,2]
[324792347,1714335063477,-500.0,0.00011232,2]
[324792348,1714335063488,-500.0,0.00011232,2]
[324792349,1714335063497,-3147.07,0.00011232,2]
[324792350,1714335063507,-500.0,0.00011232,2]
[324792351,1714335063516,-426.636916,0.00011232,2]
[324792352,1714335063526,-2302.016395,0.00011232,2]
[324792353,1714335063536,-500.0,0.00011232,2]
[324792354,1714335063546,-676.6,0.00011232,2]
[324792355,1714335063556,-1216.68,0.00011232,2]
[324792356,1714335063566,-500.0,0.00011232,2]
[324792357,1714335063576,-500.0,0.00011232,2]
[324792358,1714335063586,-220.022233,0.00011232,2]
[324792359,1714335063596,-518.32,0.00011232,2]
[324792360,1714335063606,-2302.016395,0.00011232,2]
[324792361,1714335063616,-426.636916,0.00011232,2]
[324792362,1714335063627,-1929.79,0.00011232,2]
[324792363,1714335063637,-500.0,0.00011232,2]
[324792364,1714335063647,-500.0,0.00011232,2]
[324792365,1714335063656,-3019.82,0.00011232,2]
[324792366,1714335063667,-500.0,0.00011232,2]
[324792367,1714335063677,-220.022233,0.00011232,2]
[324792368,1714335063687,-500.0,0.00011232,2]
[324792369,1714335063698,-1079.35,0.00011232,2]
[324792370,1714335063708,-500.0,0.00011232,2]
[324792371,1714335063718,-151.0,0.00011232,2]
[324792372,1714335063727,-3348.29,0.00011232,2]
[324792373,1714335063737,-500.0,0.00011232,2]
[324792374,1714335063748,-604.29,0.00011232,2]
[324792375,1714335063758,-823.29,0.00011232,2]
[324792376,1714335063767,-500.0,0.00011232,2]
[324792377,1714335063777,-563.66,0.00011232,2]
[324792378,1714335063788,-500.0,0.00011232,2]
[324792379,1714335063798,-500.0,0.00011232,2]
[324792380,1714335063808,-500.0,0.00011232,2]
[324792381,1714335063818,-1121.23,0.00011232,2]
[324792382,1714335063828,-500.0,0.00011232,2]
[324792383,1714335063839,-6639.12,0.00011232,2]
[324792384,1714335063849,-500.0,0.00011232,2]
[324792385,1714335063858,-500.0,0.00011232,2]
[324792386,1714335063868,-500.0,0.00011232,2]
[324792387,1714335063877,-500.0,0.00011232,2]
[324792388,1714335063887,-1829.171623,0.00011232,2]
[324792389,1714335063898,-542.65,0.00011232,2]
[324792390,1714335063908,-1327.37,0.00011232,2]
[324792391,1714335063918,-500.0,0.00011232,2]
[324792392,1714335063928,-764.49,0.00011232,2]
[324792393,1714335063937,-500.0,0.00011232,2]
[324792394,1714335063948,-1122.94,0.00011232,2]
[324792395,1714335063958,-1249.42,0.00011232,2]
[324792396,1714335063968,-1402.910597,0.00011232,2]
[324792397,1714335063977,-500.0,0.00011232,2]
[324792398,1714335063987,-500.0,0.00011232,2]
[324792399,1714335063996,-619.83,0.00011232,2]
[324792400,1714335064007,-2202.24,0.00011232,2]
[324792401,1714335064016,-365.581841,0.00011232,2]
[324792402,1714335064026,-1829.171623,0.00011232,2]
[324792403,1714335064036,-500.0,0.00011232,2]
[324792404,1714335064045,-2085.16,0.00011232,2]
[324792405,1714335064055,-823.96,0.00011232,2]
[324792406,1714335064065,-1402.910597,0.00011232,2]
[324792407,1714335064074,-500.0,0.00011232,2]
[324792408,1714335064083,-365.581841,0.00011232,2]
[324792409,1714335064093,-500.0,0.00011232,2]
[324792410,1714335064102,-2697.02,0.00011232,2]
[324792411,1714335064112,-500.0,0.00011232,2]
[324792412,1714335064122,-532.18,0.00011232,2]
[324792413,1714335064132,-500.0,0.00011232,2]
[324792414,1714335064141,-500.0,0.00011232,2]
[324792415,1714335064151,-500.0,0.00011232,2]
[324792416,1714335064162,-221.722352,0.00011232,2]
[324792417,1714335064171,-500.0,0.00011232,2]
[324792418,1714335064181,-2495.22,0.00011232,2]
[324792419,1714335064190,-500.0,0.00011232,2]
[324792420,1714335064200,-2332.66,0.00011232,2]
[324792421,1714335064211,-500.0,0.00011232,2]
[324792422,1714335064221,-500.0,0.00011232,2]
[324792423,1714335064231,-1688.86,0.00011232,2]
[324792424,1714335064241,-221.722352,0.00011232,2]
[324792425,1714335064251,-500.0,0.00011232,2]
[324792426,1714335064260,-500.0,0.00011232,2]
[324792427,1714335064270,-302.45782,0.00011232,2]
[324792428,1714335064279,-500.0,0.00011232,2]
[324792429,1714335064289,-500.0,0.00011232,2]
[324792430,1714335064299,-724.01,0.00011232,2]
[324792431,1714335064308,-1499.38,0.00011232,2]
[324792432,1714335064318,-500.0,0.00011232,2]
[324792433,1714335064328,-500.0,0.00011232,2]
[324792434,1714335064337,-3315.89,0.00011232,2]
[324792435,1714335064347,-5656.14,0.00011232,2]
[324792436,1714335064356,-302.45782,0.00011232,2]
[324792437,1714335064366,-500.0,0.00011232,2]
[324792438,1714335064378,-500.0,0.00011232,2]
[324792439,1714335064388,-938.48,0.00011232,2]
[324792440,1714335064398,-500.0,0.00011232,2]
[324792441,1714335064407,-2106.68,0.00011232,2]
[324792442,1714335064418,-500.0,0.00011232,2]
[324792443,1714335064427,-594.41,0.00011232,2]